fUSD/lending_fUSD_20250304
["ID","MTS","AMOUNT","RATE_DAILY","PERIOD"]
[355310335,1741062635647,-500.0,0.00012697,2]
[355310337,1741062635657,-2176.92,0.00012697,2]
[355310339,1741062635666,-1255.76,0.00012697,2]
[355310341,1741062635676,-1427.64,0.00012697,2]
[355310343,1741062635685,-729.34,0.00012697,2]
[355310345,1741062635696,-500.0,0.00012697,2]
[355310347,1741062635706,-2461.08,0.00012697,2]
[355310349,1741062635715,-735.8,0.00012697,2]
[355310351,1741062635724,-1469.01,0.00012697,2]
[355310353,1741062635734,-1681.54,0.00012697,2]
[355310355,1741062635743,-500.0,0.00012697,2]
[355310356,1741062635752,-1324.98,0.00012697,2]
[355310357,1741062635763,-508.40922962,0.00012697,2]
[355310358,1741062635776,-200.0,0.00012697,2]
[355310359,1741062635786,-500.52,0.000127,2]
[355310360,1741062635796,-1865.87344375,0.00012707,2]
[355310361,1741062635807,-2519.8148646,0.00012716,2]
[355310362,1741062635816,-12994.09169037,0.00012731,2]
[355310363,1741062635826,-2519.8148646,0.00012736,2]
[355310364,1741062635835,-1034.54474461,0.0001274,2]
[355310365,1741062635844,-152.42,0.00012741,2]
[355310366,1741062635855,-169.08868534,0.00012748,2]
[355310367,1741062635865,-2519.8148646,0.00012757,2]
[355310368,1741062635874,-12994.09169037,0.00012764,2]
[355310369,1741062635883,-2519.8148646,0.00012777,2]
[355310370,1741062635892,-2519.8148646,0.00012798,2]
[355310371,1741062635902,-12994.09169037,0.00012798,2]
[355310372,1741062635911,-354.20904168,0.000128,2]
[355310373,1741062635921,-151585.95812302,0.000128,2]
[355310374,1741062635930,-2519.8148646,0.00012818,2]
[355310375,1741062635939,-200.0,0.00012824,2]
[355310376,1741062635950,-152.42,0.00012825,2]
[355310377,1741062635959,-12994.09169037,0.00012832,2]
[355310378,1741062635968,-2519.8148646,0.00012839,2]
[355310379,1741062635977,-433.40598907,0.00012854,2]
[355310380,1741062635987,-2519.8148646,0.00012859,2]
[355310381,1741062635996,-12994.09169037,0.00012866,2]
[355310383,1741062636005,-505.50497,0.0001287,2]
[355310385,1741062636014,-3086.234,0.00012875,2]
[355310387,1741062636023,-188.453,0.00012875,2]
[355310389,1741062636033,-2519.8148646,0.0001288,2]
[355310391,1741062636042,-200.0,0.00012896,2]
[355310393,1741062636051,-278.06215078,0.000129,2]
[355310395,1741062636061,-12994.09169037,0.000129,2]
[355310397,1741062636070,-1796.19570584,0.000129,2]
[355310399,1741062636079,-2519.8148646,0.000129,2]
[355310401,1741062636089,-213.97666194,0.000129,2]
[355310403,1741062636098,-169.08868534,0.000129,2]
[355310405,1741062636107,-167.70682393,0.000129,2]
[355310407,1741062636116,-4041.61394625,0.000129,2]
[355310409,1741062636125,-152.42,0.00012909,2]
[355310411,1741062636135,-152.338,0.00012946,2]
[355310413,1741062636144,-2031.0,0.00012946,2]
[355310415,1741062636154,-3929.0,0.00012946,2]
[355310417,1741062636163,-200.0,0.00012952,2]
[355310419,1741062636172,-150.83784909,0.00012968,10]
[355310421,1741062636181,-722.49,0.00012968,2]
[355310423,1741062636191,-506.02327987,0.00012968,2]
[355310425,1741062636201,-2245.46,0.00012968,2]
[355310427,1741062636210,-707.22,0.00012969,2]
[355310429,1741062636219,-500.0,0.00012969,2]
[355310431,1741062636229,-1595.11,0.00012969,2]
[355310433,1741062636239,-500.0,0.00012969,2]
[355310435,1741062636247,-1231.06,0.00012969,2]
[355310437,1741062636257,-2203.17,0.00012969,2]
[355310439,1741062636266,-1126.33,0.00012969,2]
[355310440,1741062636275,-671.72,0.00012969,2]
[355310442,1741062636285,-964.14,0.00012969,2]
[355310444,1741062636294,-519.9,0.00012969,2]
[355310446,1741062636303,-500.0,0.00012969,2]
[355310448,1741062636313,-1246.62,0.00012969,2]
[355310450,1741062636322,-981.95,0.00012969,2]
[355310452,1741062636331,-1414.74,0.00012969,2]
[355310454,1741062636341,-917.72,0.00012969,2]
[355310457,1741062636350,-771.06,0.00012969,2]
[355310459,1741062636364,-553.63,0.00012969,2]
[355310461,1741062636373,-1274.63,0.00012969,2]
[355310462,1741062636382,-776.46,0.00012969,2]
[355310464,1741062636392,-500.0,0.00012969,2]
[355310466,1741062636401,-651.29,0.00012969,2]
[355310468,1741062636411,-905.43,0.00012969,2]
[355310470,1741062636421,-500.0,0.00012969,2]
[355310472,1741062636430,-500.0,0.00012969,2]
[355310474,1741062636440,-1096.23,0.00012969,2]
[355310476,1741062636450,-500.0,0.00012969,2]
[355310478,1741062636459,-777.59,0.00012969,2]
[355310480,1741062636469,-500.0,0.00012969,2]
[355310483,1741062636479,-859.29,0.00012969,2]
[355310484,1741062636489,-1342.29,0.00012969,2]
[355310487,1741062636498,-789.18,0.00012969,2]
[355310488,1741062636507,-1486.11,0.00012969,2]
[355310490,1741062636517,-517.26,0.00012969,2]
[355310492,1741062636527,-500.0,0.00012969,2]
[355310494,1741062636536,-1464.06,0.00012969,2]
[355310496,1741062636545,-500.0,0.00012969,2]
[355310498,1741062636555,-500.0,0.00012969,2]
[355310500,1741062636564,-500.0,0.00012969,2]
[355310502,1741062636574,-623.12,0.00012969,2]
[355310504,1741062636583,-500.0,0.00012969,2]
[355310506,1741062636593,-1691.33,0.00012969,2]
[355310508,1741062636603,-819.72,0.00012969,2]
[355310510,1741062636612,-500.0,0.00012969,2]
[355310512,1741062636622,-500.0,0.00012969,2]
[355310514,1741062636631,-708.77,0.00012969,2]
[355310516,1741062636640,-776.03,0.00012969,2]
[355310518,1741062636650,-1699.31,0.00012969,2]
[355310520,1741062636659,-500.0,0.00012969,2]
[355310522,1741062636669,-1068.68,0.00012969,2]
[355310524,1741062636678,-500.0,0.00012969,2]
[355310526,1741062636687,-751.05,0.00012969,2]
[355310528,1741062636697,-1011.11,0.00012969,2]
[355310530,1741062636706,-1299.24,0.00012969,2]
[355310532,1741062636715,-624.17,0.00012969,2]
[355310534,1741062636725,-1560.83,0.00012969,2]
[355310536,1741062636734,-638.23,0.00012969,2]
[355310538,1741062636743,-622.94,0.00012969,2]
[355310540,1741062636752,-500.0,0.00012969,2]
[355310542,1741062636761,-500.0,0.00012969,2]
[355310544,1741062636772,-500.0,0.00012969,2]
[355310546,1741062636782,-500.0,0.00012969,2]
[355310548,1741062636791,-1093.54,0.00012969,2]
[355310550,1741062636800,-833.84,0.00012969,2]
[355310552,1741062636811,-844.26,0.00012969,2]
[355310554,1741062636821,-1814.84,0.00012969,2]
[355310556,1741062636831,-2273.13,0.00012969,2]
[355310558,1741062636841,-829.56,0.00012969,2]
[355310559,1741062636851,-2347.08,0.00012969,2]
[355310561,1741062636861,-1846.52,0.00012969,2]
[355310563,1741062636870,-760.22,0.00012969,2]
[355310565,1741062636880,-2539.43,0.00012969,2]
[355310567,1741062636890,-500.0,0.00012969,2]
[355310569,1741062636899,-661.32,0.00012969,2]
[355310571,1741062636909,-1907.5,0.00012969,2]
[355310574,1741062636919,-1629.1,0.00012969,2]
[355310575,1741062636928,-1235.41,0.00012969,2]
[355310577,1741062636938,-2104.74,0.00012969,2]
[355310579,1741062636949,-2386.71,0.00012969,2]
[355310581,1741062636959,-5475.92,0.00012969,2]
[355310583,1741062636970,-1471.71,0.00012969,2]
[355310586,1741062636981,-1452.068687,0.00012969,2]
[355310588,1741062636992,-3154.63,0.00012969,2]
[355310590,1741062637002,-1027.99,0.00012969,2]
[355310592,1741062637012,-2401.92,0.00012969,2]
[355310594,1741062637025,-2806.56,0.00012969,2]
[355310595,1741062637038,-500.0,0.00012969,2]
[355310597,1741062637047,-154.096799,0.00012969,2]
[355310599,1741062637057,-1603.14,0.00012969,2]
[355310601,1741062637066,-500.0,0.00012969,2]
[355310603,1741062637076,-945.74,0.00012969,2]
[355310605,1741062637085,-1087.16,0.00012969,2]
[355310607,1741062637095,-500.0,0.00012969,2]
[355310609,1741062637104,-2950.39,0.00012969,2]
[355310611,1741062637114,-2227.6,0.00012969,2]
[355310613,1741062637123,-5663.45,0.00012969,2]
[355310615,1741062637133,-2124.19,0.00012969,2]
[355310617,1741062637142,-500.0,0.00012969,2]
[355310619,1741062637152,-500.0,0.00012969,2]
[355310621,1741062637161,-888.081606,0.00012969,2]
[355310623,1741062637171,-2627.45,0.00012969,2]
[355310625,1741062637180,-1445.64,0.00012969,2]
[355310627,1741062637190,-2398.47,0.00012969,2]
[355310629,1741062637200,-7163.25,0.00012969,2]
[355310631,1741062637210,-1620.71,0.00012969,2]
[355310633,1741062637219,-2120.18,0.00012969,2]
[355310635,1741062637228,-1455.51,0.00012969,2]
[355310637,1741062637238,-500.0,0.00012969,2]
[355310639,1741062637247,-500.0,0.00012969,2]
[355310641,1741062637256,-163.481068,0.00012969,2]
[355310643,1741062637266,-3676.43,0.00012969,2]
[355310645,1741062637275,-2098.51,0.00012969,2]
[355310647,1741062637285,-2973.6,0.00012969,2]
[355310649,1741062637295,-3381.5,0.00012969,2]
[355310651,1741062637304,-4251.84,0.00012969,2]
[355310653,1741062637314,-2748.82,0.00012969,2]
[355310655,1741062637324,-500.0,0.00012969,2]
[355310657,1741062637333,-2404.05,0.00012969,2]
[355310659,1741062637343,-500.0,0.00012969,2]
[355310661,1741062637353,-30968.86,0.00012969,2]
[355310663,1741062637363,-2368.35,0.00012969,2]
[355310665,1741062637372,-3151.4,0.00012969,2]
[355310667,1741062637381,-1296.79,0.00012969,2]
[355310669,1741062637392,-842.39,0.00012969,2]
[355310672,1741062637401,-1979.76,0.00012969,2]
[355310674,1741062637411,-6435.32,0.00012969,2]
[355310676,1741062637420,-608.78,0.00012969,2]
[355310678,1741062637430,-500.0,0.00012969,2]
[355310680,1741062637440,-1270.06,0.00012969,2]
[355310682,1741062637450,-3799.1,0.00012969,2]
[355310684,1741062637460,-4964.42,0.00012969,2]
[355310686,1741062637469,-158.344427,0.00012969,2]
[355310688,1741062637478,-3208.55,0.00012969,2]
[355310689,1741062637488,-657.5,0.00012969,2]
[355310691,1741062637498,-1200.04,0.00012969,2]
[355310693,1741062637507,-729.85,0.00012969,2]
[355310695,1741062637517,-2050.76,0.00012969,2]
[355310698,1741062637527,-156.291001,0.00012969,2]
[355310700,1741062637536,-1548.15,0.00012969,2]
[355310702,1741062637546,-2097.46,0.00012969,2]
[355310704,1741062637555,-11010.07,0.00012969,2]
[355310706,1741062637565,-2684.87,0.00012969,2]
[355310708,1741062637574,-3195.49,0.00012969,2]
[355310710,1741062637583,-15905.26,0.00012969,2]
[355310712,1741062637592,-5355.5,0.00012969,2]
[355310714,1741062637601,-712.55,0.00012969,2]
[355310715,1741062637610,-2349.49,0.00012969,2]
[355310717,1741062637620,-500.0,0.00012969,2]
[355310719,1741062637629,-1737.97,0.00012969,2]
[355310721,1741062637639,-2083.4,0.00012969,2]
[355310723,1741062637648,-2080.38,0.00012969,2]
[355310725,1741062637657,-722.9,0.00012969,2]
[355310754,1741062637927,-158.601145,0.00012969,2]
[355310756,1741062637938,-3375.58,0.00012969,2]
[355310758,1741062637948,-5127.46,0.00012969,2]
[355310760,1741062637957,-2482.58,0.00012969,2]
[355310762,1741062637966,-163.481068,0.00012969,2]
[355310764,1741062637976,-833.47,0.00012969,2]
[355310766,1741062637985,-3013.35,0.00012969,2]
[355310768,1741062637994,-978.64,0.00012969,2]
[355310770,1741062638003,-500.0,0.00012969,2]
[355310772,1741062638012,-2917.17,0.00012969,2]
[355310774,1741062638022,-4074.0,0.0001297,2]
[355310776,1741062638031,-152.216183,0.0001297,2]
[355310778,1741062638040,-158.24527,0.0001297,2]
[355310780,1741062638049,-158.24527,0.0001297,2]
[355310782,1741062638058,-566.82,0.0001297,2]
[355310784,1741062638068,-569.75,0.0001297,2]
[355310786,1741062638077,-500.0,0.0001297,2]
[355310788,1741062638086,-500.0,0.0001297,2]
[355310790,1741062638096,-701.21,0.0001297,2]
[355310792,1741062638106,-500.0,0.0001297,2]
[355310794,1741062638115,-500.0,0.0001297,2]
[355310796,1741062638124,-500.0,0.0001297,2]
[355310798,1741062638133,-500.0,0.0001297,2]
[355310800,1741062638143,-500.0,0.0001297,2]
[355310802,1741062638152,-500.0,0.0001297,2]
[355310804,1741062638162,-500.0,0.0001297,2]
[355310806,1741062638172,-808.32,0.0001297,2]
[355310808,1741062638181,-741.3,0.0001297,2]
[355310810,1741062638190,-500.0,0.0001297,2]
[355310812,1741062638199,-615.52,0.0001297,2]
[355310814,1741062638209,-500.0,0.0001297,2]
[355310815,1741062638219,-500.0,0.0001297,2]
[355310818,1741062638228,-838.0,0.0001297,2]
[355310820,1741062638238,-500.0,0.0001297,2]
[355310821,1741062638247,-594.55232462,0.0001297,2]
[355310823,1741062638256,-940.55,0.0001297,2]
[355310825,1741062638266,-500.0,0.0001297,2]
[355310827,1741062638275,-516.86,0.0001297,2]
[355310829,1741062638285,-1048.64,0.0001297,2]
[355310831,1741062638295,-616.97,0.0001297,2]
[355310833,1741062638304,-500.0,0.0001297,2]
[355310835,1741062638314,-500.0,0.0001297,2]
[355310837,1741062638324,-500.0,0.0001297,2]
[355310839,1741062638333,-500.0,0.0001297,2]
[355310841,1741062638343,-500.0,0.0001297,2]
[355310844,1741062638352,-500.0,0.0001297,2]
[355310846,1741062638362,-561.77,0.0001297,2]
[355310848,1741062638372,-925.89,0.0001297,2]
[355310850,1741062638381,-500.0,0.0001297,2]
[355310852,1741062638391,-1088.81,0.0001297,2]
[355310854,1741062638401,-500.0,0.0001297,2]
[355310856,1741062638410,-867.25,0.0001297,2]
[355310858,1741062638419,-1664.29,0.0001297,2]
[355310860,1741062638429,-500.0,0.0001297,2]
[355310861,1741062638438,-237.69993139,0.0001297,2]
[355310863,1741062638447,-500.0,0.0001297,2]
[355310866,1741062638457,-699.94,0.0001297,2]
[355310867,1741062638467,-500.0,0.0001297,2]
[355310869,1741062638476,-1216.24,0.0001297,2]
[355310871,1741062638485,-560.93,0.0001297,2]
[355310873,1741062638494,-696.01,0.0001297,2]
[355310875,1741062638504,-775.69,0.0001297,2]
[355310877,1741062638513,-1397.49,0.0001297,2]
[355310879,1741062638522,-500.0,0.0001297,2]
[355310881,1741062638532,-500.0,0.0001297,2]
[355310883,1741062638542,-500.0,0.0001297,2]
[355310885,1741062638551,-1366.73,0.0001297,2]
[355310887,1741062638560,-667.3,0.0001297,2]
[355310889,1741062638569,-500.0,0.0001297,2]
[355310891,1741062638578,-1263.56,0.0001297,2]
[355310893,1741062638587,-500.0,0.0001297,2]
[355310895,1741062638597,-500.0,0.0001297,2]
[355310897,1741062638606,-500.0,0.0001297,2]
[355310899,1741062638615,-700.91,0.0001297,2]
[355310901,1741062638625,-586.87,0.0001297,2]
[355310903,1741062638634,-253.79108446,0.0001297,2]
[355310905,1741062638643,-1249.94,0.0001297,2]
[355310907,1741062638653,-182.12,0.0001297,2]
[355310909,1741062638663,-892.92,0.0001297,2]
[355310911,1741062638672,-754.15,0.0001297,2]
[355310914,1741062638682,-744.07,0.0001297,2]
[355310915,1741062638691,-825.47,0.0001297,2]
[355310918,1741062638702,-500.0,0.0001297,2]
[355310920,1741062638712,-448.08822337,0.0001297,2]
[355310922,1741062638721,-500.0,0.0001297,2]
[355310924,1741062638731,-500.0,0.0001297,2]
[355310926,1741062638740,-1029.83,0.0001297,2]
[355310928,1741062638750,-505.15759328,0.0001297,2]
[355310930,1741062638759,-1461.32,0.0001297,2]
[355310931,1741062638773,-386.60232202,0.0001297,2]
[355310933,1741062638782,-500.0,0.0001297,2]
[355310935,1741062638791,-1291.43,0.0001297,2]
[355310938,1741062638801,-759.06,0.0001297,2]
[355310939,1741062638812,-500.0,0.0001297,2]
[355310942,1741062638821,-803.41,0.0001297,2]
[355310943,1741062638831,-1926.85,0.0001297,2]
[355310945,1741062638840,-1007.67,0.0001297,2]
[355310947,1741062638851,-1198.91,0.0001297,2]
[355310949,1741062638860,-760.65,0.0001297,2]
[355310951,1741062638869,-719.35,0.0001297,2]
[355310953,1741062638879,-867.7,0.0001297,2]
[355310955,1741062638888,-516.19034035,0.0001297,2]
[355310957,1741062638898,-1262.91,0.0001297,2]
[355310959,1741062638907,-500.0,0.0001297,2]
[355310961,1741062638917,-1367.26,0.0001297,2]
[355310963,1741062638927,-300.47,0.0001297,2]
[355310965,1741062638936,-779.87,0.0001297,2]
[355310967,1741062638947,-702.91,0.0001297,2]
[355310969,1741062638958,-500.0,0.0001297,2]
[355310971,1741062638968,-1023.24,0.0001297,2]
[355310973,1741062638977,-973.97,0.0001297,2]
[355310975,1741062638986,-500.0,0.0001297,2]
[355310977,1741062638996,-575.83,0.0001297,2]
[355310979,1741062639005,-500.0,0.0001297,2]
[355310981,1741062639014,-1308.68,0.0001297,2]
[355310983,1741062639024,-500.0,0.0001297,2]
[355310985,1741062639033,-1086.79,0.0001297,2]
[355310987,1741062639043,-1431.12,0.0001297,2]
[355310989,1741062639051,-505.0,0.0001297,2]
[355310991,1741062639060,-763.73,0.0001297,2]
[355310993,1741062639070,-944.14,0.0001297,2]
[355310995,1741062639079,-546.36,0.0001297,2]
[355310997,1741062639087,-1110.61,0.0001297,2]
[355310999,1741062639096,-819.22,0.0001297,2]
[355311001,1741062639105,-836.26,0.0001297,2]
[355311003,1741062639114,-1226.39,0.0001297,2]
[355311005,1741062639123,-533.56189755,0.0001297,2]
[355311007,1741062639132,-556.82,0.0001297,2]
[355311009,1741062639141,-500.0,0.0001297,2]
[355311011,1741062639150,-500.0,0.0001297,2]
[355311013,1741062639159,-501.31816243,0.0001297,2]
[355311015,1741062639168,-544.52525807,0.0001297,2]
[355311017,1741062639177,-500.0,0.0001297,2]
[355311019,1741062639187,-500.0,0.0001297,2]
[355311021,1741062639196,-500.0,0.0001297,2]
[355311023,1741062639207,-1001.25,0.0001297,2]
[355311025,1741062639216,-1630.41,0.0001297,2]
[355311027,1741062639226,-1070.22,0.0001297,2]
[355311029,1741062639235,-500.0,0.0001297,2]
[355311031,1741062639244,-704.22,0.0001297,2]
[355311033,1741062639253,-1050.39,0.0001297,2]
[355311034,1741062639263,-500.0,0.0001297,2]
[355311036,1741062639272,-500.0,0.0001297,2]
[355311039,1741062639281,-453.23531501,0.0001297,2]
[355311043,1741062639291,-500.0,0.0001297,2]
[355311044,1741062639300,-560.12,0.0001297,2]
[355311046,1741062639309,-510.44073211,0.0001297,2]
[355311048,1741062639319,-500.00113168,0.0001297,2]
[355311050,1741062639328,-1072.26,0.0001297,2]
[355311052,1741062639337,-500.0,0.0001297,2]
[355311054,1741062639346,-1690.31,0.0001297,2]
[355311056,1741062639355,-1187.34,0.0001297,2]
[355311058,1741062639365,-500.0,0.0001297,2]
[355311060,1741062639374,-500.0,0.0001297,2]
[355311062,1741062639383,-500.0,0.0001297,2]
[355311064,1741062639393,-1472.59,0.0001297,2]
[355311066,1741062639402,-515.25128985,0.0001297,2]
[355311068,1741062639412,-714.02,0.0001297,2]
[355311070,1741062639422,-165.24,0.0001297,2]
[355311072,1741062639431,-1225.8,0.0001297,2]
[355311074,1741062639441,-1523.4,0.0001297,2]
[355311076,1741062639453,-575.3,0.0001297,2]
[355311078,1741062639462,-3254.9,0.0001297,2]
[355311080,1741062639472,-815.83,0.0001297,2]
[355311082,1741062639481,-500.0,0.0001297,2]
[355311084,1741062639490,-153.76058552,0.0001297,2]
[355311086,1741062639499,-1301.66,0.0001297,2]
[355311088,1741062639509,-608.85335155,0.0001297,2]
[355311090,1741062639518,-762.34,0.0001297,2]
[355311092,1741062639528,-503.12680998,0.0001297,2]
[355311094,1741062639537,-2137.99,0.0001297,2]
[355311096,1741062639546,-500.0,0.0001297,2]
[355311098,1741062639555,-851.17,0.0001297,2]
[355311100,1741062639565,-500.0,0.0001297,2]
[355311102,1741062639575,-500.0,0.0001297,2]
[355311104,1741062639584,-2466.74,0.0001297,2]
[355311106,1741062639593,-539.29430808,0.0001297,2]
[355311108,1741062639602,-249.54259557,0.0001297,2]
[355311110,1741062639611,-500.0,0.0001297,2]
[355311112,1741062639620,-500.0,0.0001297,2]
[355311114,1741062639629,-1195.92,0.0001297,2]
[355311116,1741062639639,-1145.31,0.0001297,2]
[355311118,1741062639648,-1011.07,0.0001297,2]
[355311120,1741062639658,-4118.83,0.0001297,2]
[355311122,1741062639667,-1179.14,0.0001297,2]
[355311124,1741062639676,-1449.32,0.0001297,2]
[355311126,1741062639685,-20609.62,0.0001297,2]
[355311128,1741062639695,-889.74,0.0001297,2]
[355311130,1741062639706,-500.0,0.0001297,2]
[355311132,1741062639718,-1068.57,0.0001297,2]
[355311134,1741062639727,-500.0,0.0001297,2]
[355311136,1741062639736,-500.0,0.0001297,2]
[355311138,1741062639745,-725.8,0.0001297,2]
[355311140,1741062639755,-4256.42,0.0001297,2]
[355311142,1741062639765,-1380.04,0.0001297,2]
[355311144,1741062639777,-611.6,0.0001297,2]
[355311146,1741062639786,-500.0,0.0001297,2]
[355311148,1741062639796,-613.38,0.0001297,2]
[355311150,1741062639805,-512.02968898,0.0001297,2]
[355311152,1741062639815,-612.67,0.0001297,2]
[355311154,1741062639823,-500.0,0.0001297,2]
[355311156,1741062639833,-500.0,0.0001297,2]
[355311158,1741062639842,-509.91181592,0.0001297,2]
[355311160,1741062639854,-214.55226663,0.0001297,2]
[355311162,1741062639865,-1508.25,0.0001297,2]
[355311164,1741062639874,-1540.68,0.0001297,2]
[355311166,1741062639883,-500.0,0.0001297,2]
[355311168,1741062639893,-500.0,0.0001297,2]
[355311170,1741062639903,-1779.66,0.0001297,2]
[355311172,1741062639912,-1566.71,0.0001297,2]
[355311174,1741062639921,-500.0,0.0001297,2]
[355311176,1741062639931,-1600.12,0.0001297,2]
[355311178,1741062639940,-3271.02,0.0001297,2]
[355311180,1741062639952,-1214.81,0.0001297,2]
[355311182,1741062639962,-695.07,0.0001297,2]
[355311184,1741062639971,-500.0,0.0001297,2]
[355311185,1741062639980,-2329.7,0.0001297,2]
[355311186,1741062639989,-2862.71,0.0001297,2]
[355311187,1741062639998,-705.42,0.0001297,2]
[355311188,1741062640007,-386.45507996,0.0001297,2]
[355311189,1741062640017,-500.0,0.0001297,2]
[355311190,1741062640026,-699.76,0.0001297,2]
[355311191,1741062640035,-655.75,0.0001297,2]
[355311192,1741062640044,-500.0,0.0001297,2]
[355311193,1741062640054,-1978.74,0.0001297,2]
[355311194,1741062640063,-500.0,0.0001297,2]
[355311195,1741062640072,-500.0,0.0001297,2]
[355311196,1741062640082,-1150.5,0.0001297,2]
[355311197,1741062640091,-714.61,0.0001297,2]
[355311198,1741062640101,-518.41042847,0.0001297,2]
[355311199,1741062640111,-794.51,0.0001297,2]
[355311200,1741062640121,-509.78652447,0.0001297,2]
[355311201,1741062640130,-500.0,0.0001297,2]
[355311202,1741062640139,-500.0,0.0001297,2]
[355311203,1741062640149,-1326.33,0.0001297,2]
[355311204,1741062640158,-2009.64,0.0001297,2]
[355311205,1741062640167,-500.0,0.0001297,2]
[355311206,1741062640176,-500.0,0.0001297,2]
[355311207,1741062640186,-2784.3,0.0001297,2]
[355311209,1741062640195,-1027.03,0.0001297,2]
[355311211,1741062640204,-511.01588146,0.0001297,2]
[355311213,1741062640214,-1699.02,0.0001297,2]
[355311215,1741062640224,-631.4,0.0001297,2]
[355311217,1741062640233,-2822.71,0.0001297,2]
[355311219,1741062640243,-2113.29,0.0001297,2]
[355311221,1741062640252,-1978.95,0.0001297,2]
[355311223,1741062640261,-1810.56,0.0001297,2]
[355311225,1741062640271,-1852.44,0.0001297,2]
[355311227,1741062640280,-1037.65,0.0001297,2]
[355311229,1741062640289,-169.99676255,0.0001297,2]
[355311230,1741062640299,-1538.74,0.0001297,2]
[355311232,1741062640309,-3457.23,0.0001297,2]
[355311234,1741062640319,-500.0,0.0001297,2]
[355311236,1741062640328,-500.0,0.0001297,2]
[355311238,1741062640337,-2510.79,0.0001297,2]
[355311240,1741062640347,-1373.75,0.0001297,2]
[355311242,1741062640356,-762.94,0.0001297,2]
[355311244,1741062640366,-500.0,0.0001297,2]
[355311246,1741062640375,-3082.48,0.0001297,2]
[355311248,1741062640385,-1046.84,0.0001297,2]
[355311250,1741062640394,-500.0,0.0001297,2]
[355311252,1741062640404,-500.0,0.0001297,2]
[355311254,1741062640414,-158.24527,0.00012971,2]
[355311256,1741062640423,-158.24527,0.00012971,2]
[355311258,1741062640432,-1267.08,0.00012971,2]
[355311260,1741062640441,-500.0,0.00012971,2]
[355311262,1741062640451,-1011.42,0.00012971,2]
[355311264,1741062640462,-719.44,0.00012971,2]
[355311266,1741062640471,-500.0,0.00012971,2]
[355311268,1741062640480,-500.0,0.00012971,2]
[355311270,1741062640490,-1015.33,0.00012971,2]
[355311272,1741062640499,-500.0,0.00012971,2]
[355311274,1741062640508,-712.37,0.00012971,2]
[355311276,1741062640517,-500.0,0.00012971,2]
[355311278,1741062640527,-500.0,0.00012971,2]
[355311280,1741062640536,-632.97,0.00012971,2]
[355311281,1741062640545,-685.58,0.00012971,2]
[355311283,1741062640554,-1204.48,0.00012971,2]
[355311285,1741062640564,-743.01,0.00012971,2]
[355311287,1741062640573,-500.0,0.00012971,2]
[355311289,1741062640583,-1297.98,0.00012971,2]
[355311291,1741062640592,-767.86,0.00012971,2]
[355311293,1741062640601,-955.18,0.00012971,2]
[355311296,1741062640611,-500.0,0.00012971,2]
[355311297,1741062640621,-500.0,0.00012971,2]
[355311299,1741062640631,-579.32,0.00012971,2]
[355311301,1741062640640,-549.97089241,0.00012971,2]
[355311303,1741062640650,-628.36,0.00012971,2]
[355311305,1741062640659,-942.25,0.00012971,2]
[355311307,1741062640668,-500.0,0.00012971,2]